bitfinex-derivatives/quotes_SOLF0:USTF0_20250421
["timestamp","ask_amount","ask_price","bid_price","bid_amount"]
[1745196096416,7.034,142.2,142.14,7.0361]
[1745196096816,7.0341,142.19,142.13,7.037]
[1745196097015,31.54,142.18,142.1,15.53294051]
[1745196097612,31.54,142.18,142.13,15.53294051]
[1745196097916,31.54,142.21,142.13,15.53294051]
[1745196098215,31.54,142.21,142.1,15.53294051]
[1745196098714,7.0351,142.17,142.1,15.53294051]
[1745196099015,38.5751,142.17,142.1,15.53294051]
[1745196099215,38.5751,142.17,142.11,7.0376]
[1745196099614,31.54,142.17,142.07,15.53294051]
[1745196099811,31.54,142.17,142.07,22.57254051]
[1745196099812,3.9447,142.16,142.07,22.57254051]
[1745196100116,7.039,142.1,142.05,3.813]
[1745196100416,31.54,142.09,142.05,3.813]
[1745196100715,38.5791,142.09,142.01,19.46104051]
[1745196100906,31.54,142.09,142.01,23.37514051]
[1745196101214,31.54,142.09,142.01,3.9141]
[1745196101508,31.54,142.09,142.01,19.44704051]
[1745196101714,31.56,142.15,142.07,15.53294051]
[1745196101913,31.56,142.15,142.1,15.53294051]
[1745196102114,31.56,142.18,142.13,15.53294051]
[1745196102316,557.1,142.26,142.11,3.9141]
[1745196102317,31.56,142.2,142.11,3.9141]
[1745196102810,3.6695,142.19,142.11,3.9141]
[1745196103218,31.56,142.2,142.13,15.53294051]
[1745196103517,31.56,142.2,142.14,7.0365]
[1745196103715,31.56,142.2,142.13,15.53294051]
[1745196103912,31.56,142.2,142.11,35.4741]
[1745196104114,31.56,142.2,142.12,7.65129671]
[1745196104318,31.56,142.2,142.06,7.9199]
[1745196104319,31.56,142.2,142.07,15.53294051]
[1745196104618,7.0365,142.15,142.09,7.0387]
[1745196104821,31.56,142.14,142.06,3.9901]
[1745196105119,31.56,142.13,142.07,7.66105052]
[1745196105418,31.56,142.13,142.05,32.75149214]
[1745196105609,31.56,142.13,142.06,7.6631224]
[1745196105808,31.56,142.13,142.09,7.0386]
[1745196106212,31.56,142.13,142.05,32.75149214]
[1745196106419,31.56,142.13,142.06,7.66361274]
[1745196106619,31.56,142.13,142.05,7.6452]
[1745196107115,31.56,142.13,142.05,3.7525]
[1745196107327,31.56,142.13,142.02,28.80119214]
[1745196107517,7.0382,142.11,142.05,7.0409]
[1745196107717,31.56,142.13,142.02,28.80119214]
[1745196107916,7.0385,142.1,142.03,7.68711729]
[1745196108217,31.56,142.09,142.04,7.68711729]
[1745196108413,31.52,142.08,142.05,7.68711729]
[1745196108618,31.52,142.08,142.05,7.0409]
[1745196109415,31.52,142.08,142.06,7.70744512]
[1745196109618,31.52,142.11,142.07,7.70549018]
[1745196109817,31.52,142.11,142.07,7.0398]
[1745196110918,31.52,142.11,142.02,28.80119214]
[1745196111119,31.52,142.11,142.03,7.71621683]
[1745196111312,3.9448,142.14,142.04,7.71621683]
[1745196111510,31.54,142.15,142.12,7.0375]
[1745196111722,31.54,142.15,142.08,25.10629214]
[1745196111918,38.5764,142.15,142.09,14.75284827]
[1745196112220,31.54,142.15,142.05,25.10629214]
[1745196112518,31.54,142.15,142.06,7.71587563]
[1745196112717,31.54,142.15,142.07,7.71587563]
[1745196112918,31.54,142.15,142.08,7.71587563]
[1745196113111,7.0366,142.14,142.09,7.0388]
[1745196113514,7.0366,142.14,142.05,25.10629214]
[1745196113721,31.54,142.15,142.06,7.72260766]
[1745196113911,31.54,142.15,142.07,7.72260766]
[1745196114213,7.0379,142.12,142.06,7.0401]
[1745196114519,31.54,142.11,142.06,7.0401]
[1745196114816,38.578,142.11,142.06,7.0401]
[1745196115120,31.54,142.11,142.02,25.10629214]
[1745196115423,31.54,142.11,142.03,7.72808203]
[1745196115620,31.54,142.11,142.04,7.72808203]
[1745196115821,31.54,142.11,142.04,7.041]
[1745196116122,31.54,142.11,142.0,7.9818]
[1745196116318,7.0404,142.07,142.01,14.77224671]
[1745196116621,31.54,142.06,142.01,7.0426]
[1745196117620,31.54,142.06,142.02,7.0423]
[1745196117817,31.54,142.06,142.0,7.9818]
[1745196118321,31.54,142.06,142.01,7.0426]
[1745196118522,31.54,142.06,142.0,7.9818]
[1745196119126,31.54,142.06,142.02,25.10629214]
[1745196119322,3.7363,142.15,142.07,7.04]
[1745196119621,31.54,142.14,142.02,25.10629214]
[1745196120125,31.54,142.14,142.03,7.71238985]
[1745196120321,31.54,142.14,142.05,25.10629214]
[1745196120923,7.0372,142.13,142.07,7.0396]
[1745196121326,31.54,142.14,142.08,25.10629214]
[1745196121522,31.54,142.14,142.09,7.0387]
[1745196122327,31.54,142.14,142.1,7.0383]
[1745196123022,31.54,142.14,142.09,7.0389]
[1745196123023,38.5767,142.14,142.09,7.0389]
[1745196123224,31.54,142.14,142.09,7.0389]
[1745196123425,31.54,142.14,142.05,25.10629214]
[1745196123627,31.54,142.14,142.08,25.10629214]
[1745196123926,31.54,142.14,142.11,25.10629214]
[1745196124126,31.54,142.14,142.12,7.0372]
[1745196124626,31.54,142.14,142.11,25.10629214]
[1745196125123,31.54,142.14,142.11,7.0377]
[1745196125327,31.54,142.14,142.09,7.94]
[1745196125927,31.54,142.14,142.12,7.0374]
[1745196126225,31.54,142.17,142.15,7.0357]
[1745196126429,31.54,142.2,142.14,25.10629214]
[1745196126625,31.54,142.2,142.17,25.10629214]
[1745196127027,31.54,142.2,142.17,7.0349]
[1745196127529,31.54,142.2,142.17,7.035]
[1745196128024,31.54,142.2,142.14,25.10629214]
[1745196128530,7.0331,142.21,142.15,7.0359]
[1745196128730,31.54,142.2,142.15,7.0359]
[1745196128929,31.54,142.2,142.14,25.10629214]
[1745196129128,31.54,142.2,142.17,7.035]
[1745196129530,31.54,142.2,142.14,25.10629214]
[1745196129730,31.54,142.2,142.15,7.0357]
[1745196129932,31.54,142.2,142.14,25.10629214]
[1745196130531,31.54,142.2,142.17,25.10629214]
[1745196130730,31.54,142.2,142.11,25.10629214]
[1745196130928,31.54,142.2,142.1,3.8058]
[1745196131131,28.84809214,142.19,142.09,4.0442]
[1745196131323,28.84809214,142.19,142.05,25.10629214]
[1745196131324,3.7418,142.19,142.05,15.45024675]
[1745196131526,3.7418,142.19,142.08,15.45024675]
[1745196131727,3.7418,142.19,142.09,7.75329555]
[1745196131928,3.7418,142.19,142.08,15.45024675]
[1745196132433,7.0357,142.16,142.08,15.45024675]
[1745196132732,31.52,142.15,142.09,7.76929569]
[1745196132933,31.52,142.15,142.08,15.45024675]
[1745196133123,31.52,142.18,142.11,15.45024675]
[1745196133325,31.52,142.18,142.12,7.3397]
[1745196133732,31.52,142.18,142.13,3.9202]
[1745196134136,31.52,142.18,142.14,7.0362]
[1745196134327,557.4,142.23,142.15,7.76851295]
[1745196134532,31.52,142.21,142.16,7.77275162]
[1745196134832,31.52,142.21,142.14,15.45024675]
[1745196135132,31.52,142.21,142.15,7.77214517]
[1745196135430,31.52,142.21,142.19,7.0339]
[1745196135629,557.4,142.23,142.17,15.45024675]
[1745196135828,557.4,142.23,142.18,7.77281063]
[1745196136024,557.4,142.23,142.19,7.77281063]
[1745196136233,31.52,142.27,142.2,23.2194205]
[1745196136425,31.52,142.27,142.22,7.0322]
[1745196136629,31.52,142.27,142.21,3.8372]
[1745196137235,31.52,142.27,142.22,7.77064919]
[1745196137534,31.52,142.27,142.23,7.76865426]
[1745196137733,31.52,142.27,142.25,7.0311]
[1745196137933,31.52,142.27,142.21,32.85823703]
[1745196138133,31.52,142.27,142.22,7.76696544]
[1745196138434,31.52,142.27,142.23,7.76696544]
[1745196138634,31.52,142.27,142.24,7.76696544]
[1745196138834,31.52,142.27,142.25,7.76696544]
[1745196139038,31.52,142.27,142.24,25.05033703]
[1745196139226,564.2483,142.31,142.26,7.0306]
[1745196139433,31.48,142.33,142.24,25.05033703]
[1745196139634,31.48,142.33,142.25,11.63652228]
[1745196139841,7.0285,142.31,142.26,14.78242228]
[1745196140131,31.48,142.33,142.25,3.8844]
[1745196142037,31.48,142.33,142.26,7.7505193]
[1745196142336,38.5073,142.33,142.27,7.0296]
[1745196142635,38.5073,142.33,142.25,3.8844]
[1745196142931,31.48,142.33,142.25,3.8844]
[1745196143536,31.48,142.33,142.29,7.029]
[1745196143736,31.48,142.33,142.27,25.05033703]
[1745196143932,31.48,142.33,142.28,11.48146682]
[1745196144237,31.48,142.33,142.28,3.7529]
[1745196144734,31.48,142.33,142.25,3.8844]
[1745196144932,31.48,142.33,142.22,7.4245]
[1745196145128,25.05033703,142.31,142.16,3.9759]
[1745196145333,25.05033703,142.31,142.16,7.7288]
[1745196145532,3.7587,142.3,142.17,25.05033703]
[1745196145728,7.0311,142.25,142.19,7.0339]
[1745196145934,31.48,142.24,142.16,7.7288]
[1745196146128,31.48,142.23,142.16,3.7529]
[1745196146327,31.48,142.22,142.17,7.0349]
[1745196146529,31.48,142.21,142.17,7.0349]
[1745196146729,31.48,142.21,142.16,3.7529]
[1745196146933,31.48,142.21,142.16,10.7884]
[1745196147134,31.48,142.21,142.13,3.6716]
[1745196147431,31.48,142.21,142.11,29.07363703]
[1745196147632,7.0344,142.19,142.13,7.0369]
[1745196147827,31.48,142.21,142.11,29.07363703]
[1745196148739,31.48,142.21,142.13,7.0367]
[1745196148740,7.0344,142.19,142.13,7.0367]
[1745196148941,7.0344,142.19,142.11,29.07363703]
[1745196149136,31.48,142.21,142.11,29.07363703]
[1745196150143,7.0354,142.17,142.11,29.07363703]
[1745196150338,31.48,142.16,142.11,29.07363703]
[1745196151339,31.48,142.16,142.12,7.0372]
[1745196151538,31.48,142.16,142.11,29.07363703]
[1745196151740,31.48,142.16,142.11,4.0233]
[1745196151944,31.48,142.16,142.06,28.76623703]
[1745196152142,31.48,142.16,142.06,36.60033703]
[1745196152440,31.48,142.16,141.98,31.48]
[1745196152643,3.8385,142.15,142.01,25.05033703]
[1745196153037,7.0384,142.11,141.98,42.7907]
[1745196153234,31.48,142.1,142.04,25.05033703]
[1745196153536,31.48,142.13,142.04,25.05033703]
[1745196153734,31.48,142.13,142.07,25.05033703]
[1745196153938,31.48,142.16,142.1,25.05033703]
[1745196154443,31.48,142.19,142.1,25.05033703]
[1745196154632,31.48,142.19,142.15,7.0359]
[1745196154944,31.48,142.19,142.1,25.05033703]
[1745196155143,38.5144,142.19,142.1,25.05033703]
[1745196155744,7.0346,142.18,142.1,25.05033703]
[1745196155944,31.48,142.19,142.1,25.05033703]
[1745196157446,7.035,142.18,142.12,7.0372]
[1745196157746,31.48,142.19,142.1,25.05033703]
[1745196158046,38.5141,142.19,142.1,25.05033703]
[1745196158246,31.48,142.19,142.1,25.05033703]
[1745196159343,31.48,142.19,142.11,23.2020307]
[1745196159642,31.48,142.19,142.18,7.0346]
[1745196160145,31.48,142.22,142.18,7.0346]
[1745196160347,31.48,142.25,142.17,15.43653173]
[1745196160549,31.48,142.25,142.18,3.7235]
[1745196161751,31.48,142.25,142.2,15.43653173]
[1745196161950,31.48,142.28,142.2,15.43653173]
[1745196162141,31.48,142.32,142.26,15.43653173]
[1745196162547,31.48,142.32,142.27,7.0297]
[1745196162757,31.48,142.32,142.26,15.43653173]
[1745196163054,31.48,142.32,142.23,15.43653173]
[1745196163359,31.48,142.32,142.2,376.43653173]
[1745196163558,31.48,142.32,142.2,361.0]
[1745196163758,557.08,142.34,142.22,25.05888895]
[1745196163950,31.48,142.33,142.22,25.05888895]
[1745196165160,56.53888895,142.33,142.2,361.0]
[1745196165460,31.48,142.33,142.21,7.76238985]
[1745196165660,31.48,142.33,142.2,361.0]
[1745196165861,56.53888895,142.33,142.2,361.0]
[1745196166157,56.53888895,142.33,142.19,29.07978895]
[1745196166158,56.53888895,142.33,142.18,3.7235]
[1745196166964,56.53888895,142.33,142.19,7.76797757]
[1745196167161,7.0299,142.28,142.22,7.0324]
[1745196167361,31.48,142.27,142.22,7.0324]
[1745196167861,31.48,142.27,142.19,25.05888895]
[1745196168363,31.48,142.27,142.18,3.7235]
[1745196168857,31.48,142.27,142.19,7.76961988]
[1745196169064,7.0306,142.26,142.2,7.0334]
[1745196169368,31.48,142.27,142.18,3.7235]
[1745196169565,38.5102,142.27,142.21,7.0327]
[1745196169865,31.48,142.27,142.18,3.7235]
[1745196170065,31.48,142.27,142.19,32.82934442]
[1745196170363,31.48,142.27,142.2,7.77045547]
[1745196170666,31.48,142.27,142.19,25.05888895]
[1745196171262,38.5105,142.27,142.21,7.033]
[1745196171467,31.48,142.27,142.18,3.7235]
[1745196171866,31.48,142.27,142.19,25.05888895]
[1745196172071,31.48,142.27,142.2,7.77093248]
[1745196172266,31.48,142.27,142.22,25.05888895]
[1745196172463,3.7661,142.29,142.22,25.05888895]
[1745196172669,31.44,142.28,142.22,25.05888895]
[1745196172869,31.44,142.28,142.25,25.05888895]
[1745196173071,31.44,142.31,142.25,25.05888895]
[1745196173771,588.52,142.34,142.28,25.05888895]
[1745196174171,588.52,142.34,142.25,25.05888895]
[1745196174372,3.6798,142.33,142.22,417.49888895]
[1745196174573,3.6798,142.33,142.23,7.75660009]
[1745196174866,3.6798,142.33,142.25,25.05888895]
[1745196176371,3.6798,142.33,142.22,386.05888895]
[1745196176672,3.6798,142.33,142.23,7.75458163]
[1745196176871,3.6798,142.33,142.25,7.031]
[1745196178071,7.029,142.3,142.24,7.0315]
[1745196178268,31.42,142.29,142.21,3.8405]
[1745196178571,31.42,142.28,142.16,390.00798895]
[1745196178772,35.4767,142.27,142.19,7.0339]
[1745196178967,35.4767,142.27,142.16,390.00798895]
[1745196179167,3.7667,142.26,142.16,364.9491]
[1745196179367,556.84,142.25,142.15,3.7975]
[1745196179571,556.84,142.25,142.1,32.94798895]
[1745196179775,25.05888895,142.22,142.11,7.77555406]
[1745196180071,7.0344,142.19,142.13,7.0369]
[1745196180273,31.42,142.21,142.1,36.80248895]
[1745196180474,31.42,142.21,142.13,25.05888895]
[1745196180769,31.42,142.21,142.16,25.05888895]
[1745196180976,31.42,142.21,142.18,7.0345]
[1745196181171,31.42,142.21,142.17,3.8545]
[1745196181374,31.42,142.24,142.19,25.05888895]
[1745196181871,31.42,142.27,142.19,25.05888895]
[1745196182074,567.8582,142.32,142.22,25.05888895]
[1745196182266,31.42,142.31,142.22,25.05888895]
[1745196182470,31.42,142.31,142.26,7.0304]
[1745196182669,31.42,142.31,142.22,25.05888895]
[1745196183577,31.42,142.31,142.26,7.0304]
[1745196183874,31.42,142.31,142.22,25.05888895]
[1745196184377,31.42,142.31,142.19,386.05888895]
[1745196184569,31.42,142.31,142.2,7.76110114]
[1745196184770,31.42,142.31,142.21,7.76110114]
[1745196184970,38.4482,142.31,142.22,25.05888895]
[1745196185177,31.42,142.31,142.22,25.05888895]
[1745196185372,31.42,142.31,142.28,7.0292]
[1745196185571,31.42,142.31,142.25,25.05888895]
[1745196185972,31.42,142.31,142.26,7.0304]
[1745196186171,31.42,142.31,142.25,25.05888895]
[1745196186470,7.0287,142.3,142.24,3.7043]
[1745196186771,31.42,142.31,142.24,3.7043]
[1745196187275,38.4468,142.34,142.29,7.0289]
[1745196187470,31.42,142.34,142.26,15.40449764]
[1745196187971,31.42,142.34,142.25,7.6067]
[1745196188275,7.0286,142.31,142.25,10.9091]
[1745196188476,31.42,142.3,142.25,3.8781]
[1745196188973,556.78,142.29,142.17,907.0]
[1745196189176,575.95059764,142.29,142.18,3.9678]
[1745196189672,575.95059764,142.29,142.17,361.0]
[1745196189970,7.034,142.2,142.14,3.9678]
[1745196190175,31.42,142.19,142.14,3.9678]
[1745196190475,31.42,142.19,142.15,7.0357]
[1745196191276,31.42,142.19,142.14,3.9678]
[1745196191675,31.42,142.19,142.15,7.036]
[1745196193177,31.42,142.19,142.14,3.9678]
[1745196194878,31.42,142.19,142.14,29.05177038]
[1745196195077,31.44,142.26,142.14,390.05177038]
[1745196195279,7.0283,142.31,142.25,7.0307]
[1745196195477,31.44,142.32,142.24,25.08397038]
[1745196195778,31.44,142.32,142.27,7.0297]
[1745196196383,31.44,142.32,142.28,7.0295]
[1745196197173,31.44,142.32,142.25,3.7014]
[1745196197779,31.42,142.35,142.25,3.7014]
[1745196197975,31.42,142.35,142.27,25.08397038]
[1745196198276,31.42,142.35,142.25,3.7014]
[1745196198475,31.42,142.35,142.27,7.0299]
[1745196198680,31.42,142.35,142.25,3.7014]
[1745196198883,7.027,142.34,142.28,7.0296]
[1745196199481,7.027,142.34,142.29,7.029]
[1745196199675,38.4463,142.35,142.29,7.029]
[1745196199882,31.42,142.35,142.25,3.7014]
[1745196200084,31.42,142.35,142.28,7.0295]
[1745196200381,7.027,142.34,142.28,7.0295]
[1745196200578,7.027,142.34,142.28,7.0293]
[1745196200880,7.0273,142.33,142.28,7.0293]
[1745196201082,31.42,142.35,142.25,3.7014]
[1745196201280,3.6682,142.34,142.25,10.7321]
[1745196201781,3.6682,142.34,142.25,3.7014]
[1745196202173,31.42,142.35,142.26,25.08397038]
[1745196202779,31.42,142.35,142.27,7.78235841]
[1745196202979,556.94,142.37,142.26,25.08397038]
[1745196203284,588.34,142.37,142.26,25.08397038]
[1745196203485,7.0265,142.35,142.26,25.08397038]
[1745196203678,7.6687,142.36,142.27,7.78388418]
[1745196203985,7.6687,142.36,142.26,25.08397038]
[1745196204284,588.34,142.37,142.29,25.08397038]
[1745196204781,588.34,142.37,142.31,7.0281]
[1745196204986,588.34,142.37,142.26,25.08397038]
[1745196205287,588.34,142.37,142.27,7.78494045]
[1745196205485,588.34,142.37,142.28,7.78494045]
[1745196205686,588.34,142.37,142.26,25.08397038]
[1745196205687,7.026,142.36,142.3,7.0285]
[1745196206188,588.34,142.37,142.29,7.029]
[1745196206383,588.34,142.37,142.26,25.08397038]
[1745196206384,588.34,142.37,142.25,3.7014]
[1745196206583,588.34,142.37,142.26,7.78940533]
[1745196206786,588.34,142.37,142.25,3.7014]
[1745196207087,1.22296217,142.44,142.26,32.87337564]
[1745196207384,622.12431751,142.43,142.27,39.16940526]
[1745196207585,7.0256,142.37,142.31,7.0278]
[1745196207777,31.38,142.36,142.31,7.0278]
[1745196208287,38.406,142.36,142.31,7.0278]
[1745196209984,7.0263,142.35,142.27,31.38]
[1745196210187,31.38,142.36,142.26,25.08397038]
[1745196210482,31.38,142.36,142.27,7.78311875]
[1745196210685,7.0267,142.34,142.29,7.0287]
[1745196210986,31.38,142.36,142.29,7.0287]
[1745196211190,31.38,142.36,142.29,25.08397038]
[1745196211678,31.38,142.36,142.32,7.0275]
[1745196212087,31.38,142.36,142.29,25.08397038]
[1745196212582,38.406,142.36,142.3,7.0285]
[1745196212787,31.38,142.36,142.26,25.08397038]
[1745196213086,31.38,142.36,142.27,7.78159708]
[1745196213286,31.38,142.36,142.31,7.0277]
[1745196213790,31.38,142.36,142.27,15.40347381]
[1745196214091,31.38,142.36,142.28,7.78009288]
[1745196214386,38.4057,142.36,142.27,15.40347381]
[1745196214888,15.40347381,142.35,142.25,3.7014]
[1745196215090,23.21457381,142.35,142.25,3.7014]
[1745196215288,7.8111,142.35,142.25,3.7014]
[1745196215492,7.0251,142.38,142.31,7.0278]
[1745196215690,31.38,142.37,142.31,7.0278]
[1745196215992,31.38,142.36,142.31,15.40347381]
[1745196216289,31.38,142.36,142.3,7.0284]
[1745196216490,31.38,142.36,142.28,15.40347381]
[1745196216788,31.38,142.36,142.31,7.0281]
[1745196216986,31.38,142.36,142.28,15.40347381]
[1745196217189,31.38,142.36,142.32,7.0273]
[1745196217386,31.38,142.36,142.31,15.40347381]
[1745196217694,31.38,142.39,142.34,7.0264]
[1745196217990,31.38,142.39,142.32,3.6954]
[1745196218592,31.38,142.39,142.33,3.7032]
[1745196218789,7.8111,142.42,142.33,3.7032]
[1745196218790,38.4035,142.41,142.33,3.7032]
[1745196218987,31.38,142.41,142.25,587.92]
[1745196219192,7.0257,142.36,142.3,7.0285]
[1745196219393,38.4057,142.36,142.27,15.40347381]
[1745196219692,31.38,142.36,142.28,7.77679874]
[1745196219891,7.0266,142.35,142.29,7.0288]
[1745196220191,7.0266,142.35,142.27,15.40347381]
[1745196220392,7.0266,142.35,142.29,7.0287]
[1745196220690,31.38,142.36,142.27,15.40347381]
[1745196220991,31.38,142.36,142.3,7.0283]
[1745196221292,7.0265,142.35,142.27,15.40347381]
[1745196221493,31.38,142.36,142.32,7.0273]
[1745196222295,38.4057,142.36,142.32,7.0273]
[1745196222994,38.4057,142.36,142.31,7.0281]
[1745196223390,7.0263,142.35,142.27,15.40347381]
[1745196223596,31.38,142.36,142.29,7.029]
[1745196224196,7.0267,142.34,142.3,7.0285]
[1745196224396,7.0267,142.34,142.27,15.40347381]
[1745196224996,7.0267,142.34,142.29,7.0288]
[1745196225291,7.0267,142.34,142.25,46.78347381]
[1745196225497,7.0274,142.33,142.28,7.0296]
[1745196225700,3.7955,142.35,142.25,46.78347381]
[1745196225898,7.0267,142.34,142.26,7.77984245]
[1745196226099,7.0267,142.34,142.29,7.0288]
[1745196226701,7.0272,142.33,142.29,7.0288]
[1745196227097,7.0272,142.33,142.28,7.0295]
[1745196227399,7.0268,142.34,142.25,46.78347381]
[1745196227699,7.0268,142.34,142.29,7.029]
[1745196228398,7.0268,142.34,142.28,7.0294]
[1745196228598,3.7955,142.35,142.28,7.0294]
[1745196229001,3.7955,142.35,142.29,7.029]
[1745196229201,3.7955,142.35,142.25,15.40347381]
[1745196229498,3.7955,142.35,142.26,7.77819102]
[1745196229691,3.7955,142.35,142.27,7.77819102]
[1745196229895,3.7955,142.35,142.25,15.40347381]
[1745196230099,3.7955,142.35,142.26,7.77706966]
[1745196230298,10.8217,142.35,142.3,7.0283]
[1745196230499,10.8217,142.35,142.25,15.40347381]
[1745196230695,31.38,142.36,142.26,39.11568519]
[1745196230902,31.38,142.36,142.27,7.77568519]
[1745196231099,7.0262,142.35,142.3,7.0283]
[1745196231400,31.38,142.36,142.26,31.34]
[1745196231698,7.0263,142.35,142.27,7.77546552]
[1745196231900,31.38,142.36,142.28,23.17893933]
[1745196232097,31.38,142.36,142.29,3.8557]
[1745196232296,38.4058,142.36,142.31,7.0278]
[1745196232600,31.38,142.36,142.29,3.8557]
[1745196232802,31.38,142.36,142.34,7.0263]
[1745196233400,31.38,142.36,142.35,7.0262]
[1745196234300,31.38,142.36,142.31,15.40347381]
[1745196234600,31.34,142.39,142.32,7.76727908]
[1745196234800,31.34,142.39,142.34,7.0266]
[1745196235102,38.3643,142.39,142.34,7.0266]
[1745196235398,31.34,142.39,142.36,7.0256]
[1745196235601,31.34,142.39,142.31,15.40347381]
[1745196235802,38.3645,142.39,142.31,15.40347381]
[1745196236205,31.34,142.39,142.32,7.77727948]
[1745196236502,31.34,142.39,142.31,15.40347381]
[1745196236700,31.34,142.39,142.32,7.77789519]
[1745196236903,38.3644,142.39,142.35,7.0261]
[1745196237604,31.34,142.39,142.36,7.0256]
[1745196238004,31.34,142.39,142.31,15.40347381]
[1745196238206,31.34,142.39,142.34,7.0266]
[1745196238605,31.34,142.39,142.31,15.40347381]
[1745196238906,31.34,142.39,142.32,7.79391609]
[1745196239206,38.3643,142.39,142.35,7.0258]
[1745196239701,31.34,142.39,142.35,7.0258]
[1745196240501,31.34,142.39,142.31,15.40347381]
[1745196240707,31.34,142.39,142.32,7.81534024]
[1745196241003,19.14707381,142.38,142.25,8.0382]
[1745196241305,3.7436,142.38,142.29,7.82069799]
[1745196241604,3.7436,142.38,142.3,7.82069799]
[1745196241805,31.34,142.39,142.31,7.82069799]
[1745196242006,31.34,142.39,142.32,7.82069799]
[1745196242201,31.34,142.39,142.27,3.8911]
[1745196242403,31.34,142.39,142.28,10.81695943]
[1745196242603,7.025,142.38,142.33,7.0268]
[1745196242803,31.34,142.39,142.27,3.8911]
[1745196243003,31.34,142.39,142.28,10.81617133]
[1745196243206,31.34,142.39,142.29,10.81617133]
[1745196243407,31.34,142.39,142.3,7.81861662]
[1745196243603,31.34,142.39,142.31,7.81861662]
[1745196243803,31.34,142.39,142.32,7.81861662]
[1745196244010,31.34,142.39,142.34,7.0264]
[1745196244206,31.34,142.39,142.29,15.40347381]
[1745196244409,31.34,142.39,142.3,10.81424979]
[1745196244717,38.3642,142.39,142.31,7.81678306]
[1745196244914,31.34,142.39,142.32,7.81678306]
[1745196245214,31.34,142.39,142.33,7.81678306]
[1745196245410,31.34,142.39,142.34,7.81678306]
[1745196245614,31.34,142.39,142.36,7.0252]
[1745196245909,3.7436,142.42,142.32,15.40347381]
[1745196246119,588.04,142.43,142.35,15.40347381]
[1745196246318,595.0626,142.43,142.36,7.81553387]
[1745196246519,588.04,142.43,142.34,3.7249]
[1745196246717,588.04,142.43,142.35,7.81433643]
[1745196246917,588.04,142.43,142.33,4.0557]
[1745196247214,588.04,142.43,142.34,14.84098631]
[1745196247215,7.0237,142.4,142.34,14.84098631]
[1745196247423,31.34,142.39,142.33,4.0557]
[1745196247621,31.34,142.39,142.34,7.81612107]
[1745196247811,31.34,142.39,142.35,14.84129437]
[1745196248120,31.34,142.39,142.33,4.0557]
[1745196248418,31.34,142.39,142.34,7.81519231]
[1745196248615,31.34,142.39,142.35,7.81519231]
[1745196248919,31.34,142.39,142.33,4.0557]
[1745196249121,31.34,142.39,142.34,7.81337634]
[1745196249321,31.34,142.39,142.35,7.3102186]
[1745196249520,31.34,142.39,142.36,7.0252]
[1745196249921,31.34,142.39,142.33,4.0557]
[1745196250121,556.7,142.43,142.34,15.12179154]
[1745196250321,31.34,142.42,142.35,7.81182575]
[1745196250520,31.34,142.42,142.36,7.81182575]
[1745196250720,31.34,142.42,142.35,7.30996579]
[1745196251020,31.34,142.42,142.33,4.0557]
[1745196251220,7.024,142.4,142.35,7.0262]
[1745196251621,31.34,142.42,142.33,4.0557]
[1745196251822,31.34,142.42,142.34,7.81088023]